Cogmind - Beta 13 @@@ ROGUE MODE // 2024.08.02 @ 16:10:12 Player: polar Result: Destroyed by XZ-WO0(R) with Subdweller Machine Gun Performance ------------- Evolutions (0) 0 Regions Visited (3) 600 Robots Destroyed (38) 190 Value Destroyed (852) 852 Prototype IDs (3) 60 Alien Tech Used (0) 0 Bonus (97) 97 TOTAL SCORE: 1799 Bonus ------- Follower Combat Kills 159 Friendly Fire -62 Cogmind --------- Core Integrity 0/250 Matter 175/300 Energy 233/250 System Corruption 0% Temperature Cool (6) Movement Treading (160) Location -10/Subcaves Parts ------- > --- POWER (1) -------- Ion Engine > --- PROPULSION (2) --- Light Treads Light Treads > --- UTILITY (2) ------ Heat Sink Large Storage Unit > --- WEAPON (2) ------- Beam Cannon Battle Cannon > --- INVENTORY (15) --- Wheel Wheel Compact Wheel Subdweller Monowheel Huge Storage Unit Subdweller Optics Hacking Suite Beam Cannon Grenade Launcher Grenade Launcher Mining Laser Multitool Flamer Peak State ------------ > --- POWER ------------ Light Nuclear Core > --- PROPULSION ------- Light Treads Subdweller Monowheel > --- UTILITY ---------- Large Storage Unit Seismic Detector > --- WEAPON ----------- Beam Cannon Beam Cannon > --- INVENTORY -------- Ion Engine Ion Engine Wheel Wheel Compact Wheel Heat Sink Huge Storage Unit Subdweller Optics Hacking Suite Medium Laser Subdweller Machine Gun Grenade Launcher Grenade Launcher Mining Laser Multitool [Rating: 12] Favorites ----------- Power Ion Engine Engine Ion Engine Power Core Light Nuclear Core Propulsion Light Treads Treads Light Treads Wheel Wheel Utility Large Storage Unit Device Seismic Detector Storage Large Storage Unit Protection Light Armor Plating Weapon Assault Rifle Energy Gun Medium Laser Energy Cannon Beam Cannon Ballistic Gun Assault Rifle Ballistic Cannon Battle Cannon Launcher Grenade Launcher Special Weapon Mining Laser Build | -11 -10 -10 -10 ------- Run | Yrd Mat Min Sub Slots Evolved . | . . . . Power . | . . . . Propulsion . | . . . . Utility . | . . . . Weapon . | . . . . Parts Attached 37 | 7 4 10 16 Power 3 | 1 . 1 1 Engine 2 | 1 . . 1 Core 1 | . . 1 . Reactor . | . . . . Propulsion 6 | 2 2 . 2 Treads 4 | 1 2 . 1 Leg . | . . . . Wheel 2 | 1 . . 1 Hover . | . . . . Flight . | . . . . Utility 6 | 2 2 1 1 Device 3 | 1 . 1 1 Storage 2 | 1 1 . . Processor . | . . . . Hackware . | . . . . Protection 1 | . 1 . . Artifact . | . . . . Weapon 22 | 2 . 8 12 Energy Gun 1 | 1 . . . Energy Cannon 7 | . . 2 5 Ballistic Gun 6 | 1 . 3 2 Ballistic Cannon 1 | . . . 1 Launcher 3 | . . 2 1 Special Weapon 4 | . . 1 3 Impact Weapon . | . . . . Slashing Weapon . | . . . . Piercing Weapon . | . . . . Special Melee Weapon . | . . . . Unidentified Prototypes . | . . . . Parts Lost 9 | . 1 3 5 Power 1 | . . . 1 Propulsion 2 | . 1 . 1 Utility 2 | . . 1 1 Weapon 4 | . . 2 2 Highest Loss Streak 3 | . 1 2 3 To Critical Strikes . | . . . . Average Slot Usage (%) 96 | . 91 99 97 Engine 10 | . 14 10 3 Core 2 | . . 3 10 Treads 23 | . 19 28 21 Wheel 1 | . . . 5 Device 7 | . . 11 13 Storage 14 | . 14 14 14 Protection 6 | . 13 2 . Energy Gun 6 | . 14 2 . Energy Cannon 4 | . . 6 11 Ballistic Gun 10 | . 14 7 7 Launcher 4 | . . 7 7 Special Weapon 2 | . . 4 1 Naked Turns . | . . . . Heaviest Build 33 | 15 32 33 33 Greatest Support 40 | 20 40 40 40 Greatest Overweight (x) 2 | 1 2 . 1 Average Overweight (x) . | . . . . Largest Inventory Capacity 15 | 8 15 15 15 Average Capacity 14 | 7 14 15 15 Most Carried 15 | 4 13 14 15 Average Carried 10 | 2 9 12 14 Final Capacity 15 | 8 15 15 15 Final Carried 14 | 4 13 14 13 Class Distribution -------------------- 96% | Mutant 3% | Scavenger-Mutant Dominant Class ---------------- Mutant | -10/Materials Mutant | -10/Mines Mutant | -10/Subcaves Resources | -11 -10 -10 -10 ----------- Run | Yrd Mat Min Sub Matter Collected 836 | 306 185 179 166 Remotely . | . . . . Salvage Created 1041 | 193 461 144 243 Parts 80 | 15 34 14 17 Haulers Intercepted . | . . . . Recyclers Shooed . | . . . . Parts Field Recycled . | . . . . Retrieved Matter . | . . . . Parts Self-Destructed 6 | . . . 6 Prevented . | . . . . Kills | -11 -10 -10 -10 ------- Run | Yrd Mat Min Sub Combat Hostiles Destroyed 26 | . 13 7 6 Guns 13 | . 13 . . Cannons 3 | . . . 3 AOE 10 | . . 7 3 Classes Destroyed 11 | 2 6 . 3 Worker 2 | . 1 1 . Tunneler 5 | 5 . . . Recycler 1 | 1 . . . Mechanic 1 | . 1 . . Operator 2 | . 2 . . Watcher 1 | . 1 . . Swarmer 9 | . 6 3 . Grunt 11 | . 7 4 . Sentry 1 | . . . 1 Artisan 1 | . . . 1 Subdweller 5 | . . . 5 Best Kill Streak 4 | 4 4 3 2 Combat Bots Only 3 | . 3 3 2 Max Kills in Single Turn 2 | 1 2 2 1 Gunslinging 1 | . 1 . . Exploded 2 | . . 2 1 Melee . | . . . . Uniques/NPCs Destroyed . | . . . . Combat | -11 -10 -10 -10 -------- Run | Yrd Mat Min Sub Hostile Shots Fired 105 | . 62 12 31 Missed 23 | . 12 5 6 Damage Taken 1293 | . 529 282 482 Core 267 | . 84 97 86 Absorbed by Shields . | . . . . Core Remaining (%) 100 | 100 . . . Volleys Fired 123 | 12 51 27 33 Largest 2 | 2 2 2 2 Hottest 160 | 70 70 160 160 Shots Fired 224 | 24 102 46 52 Gun 147 | 24 102 8 13 Cannon 43 | . . 17 26 Launcher 20 | . . 11 9 Special 14 | . . 10 4 Kinetic 81 | 12 51 3 15 Thermal 123 | 12 51 32 28 Explosive 20 | . . 11 9 Electromagnetic . | . . . . Robot Hit Streak 18 | 6 18 5 13 Robot Miss Streak 6 | 3 6 3 3 Penetration Max . | . . . . Secondary Targets 2 | . 2 . . Max Gunslinging Chain 1 | . 1 . . Shots Hit Robots 121 | 14 65 11 31 Core Hits 57 | 7 26 13 11 Critical Kills . | . . . . Critical Parts Destroyed . | . . . . Critical Strikes 5 | 1 3 . 1 Burn 4 | 1 3 . . Destroy 1 | . . . 1 Melee Attacks . | . . . . Impact . | . . . . Slashing . | . . . . Piercing . | . . . . Sneak Attacks . | . . . . Combat Hostiles . | . . . . Follow-up Attacks . | . . . . Damage Inflicted 2573 | 171 868 647 887 Guns 1274 | 171 868 49 186 Cannons 301 | . . 36 265 Explosions 974 | . . 538 436 Melee . | . . . . Ramming . | . . . . Kinetic 733 | 72 450 10 201 Thermal 866 | 99 418 99 250 Explosive 974 | . . 538 436 Electromagnetic . | . . . . Impact . | . . . . Slashing . | . . . . Piercing . | . . . . Highest Corruption . | . . . . Average Corruption . | . . . . Corruption Purged . | . . . . Corruption Blocked . | . . . . Overload Shots . | . . . . Overflow Damage 35 | . . 35 . Projectiles . | . . . . Explosions 35 | . . 35 . Melee . | . . . . Knockbacks . | . . . . Impact . | . . . . Kinetic . | . . . . Secondary . | . . . . Self-Inflicted Damage 112 | . . 106 6 Shots 7 | . . 6 1 Rammed . | . . . . Targets Rammed . | . . . . Kicked . | . . . . Crushed . | . . . . Highest Temperature 240 | 63 216 240 12 Average Temperature 67 | 23 69 85 4 Received Heat Transfer 366 | . 237 51 78 Siege Activations . | . . . . Robots Corrupted . | . . . . Combat Hostiles . | . . . . Parts Fried . | . . . . Impact Corruptions . | . . . . Robots Melted . | . . . . Combat Hostiles . | . . . . Parts Melted 4 | . 4 . . Heat Transferred 2566 | 370 1443 235 518 Parts Sabotaged . | . . . . Parts Stolen . | . . . . Parts Stripped . | . . . . Power Chain Reactions . | . . . . Alert | -11 -10 -10 -10 ------- Run | Yrd Mat Min Sub Peak Influence 207 | 30 207 154 . Initial 19 | . 19 . . Average 67 | 11 87 54 . Maximum Alert Level 1 | . 1 . . Low Security (%) 95 | 100 90 100 . Level 1 4 | . 9 . . Level 2 . | . . . . Level 3 . | . . . . Level 4 . | . . . . Level 5 . | . . . . High Security . | . . . . Max Security . | . . . . Squads Dispatched 3 | . 3 . . Investigation . | . . . . Extermination . | . . . . Reinforcement 3 | . 3 . . Assault . | . . . . Garrison . | . . . . Intercept . | . . . . Searches Triggered . | . . . . Construction Impeded . | . . . . Haulers Reinforced . | . . . . Active Scanning Responses . | . . . . Cargo Convoy Interrupts . | . . . . Stealth | -11 -10 -10 -10 --------- Run | Yrd Mat Min Sub Distress Signals 2 | . 2 . . Communications Jammed . | . . . . Distress Signals . | . . . . Times Spotted 44 | . 24 10 10 Peak Tracking Total 5 | . 5 2 2 Tactical Retreats . | . . . . Traps | -11 -10 -10 -10 ------- Run | Yrd Mat Min Sub Traps Triggered . | . . . . Indirectly . | . . . . Trap Hack Attempts . | . . . . Triggered . | . . . . Disarmed . | . . . . Reprogrammed . | . . . . Reused . | . . . . Traps Extracted . | . . . . Installed . | . . . . Triggered . | . . . . Machines | -11 -10 -10 -10 ---------- Run | Yrd Mat Min Sub Machines Disabled . | . . . . Max in Single Turn . | . . . . Machines Repaired . | . . . . Machines Dismantled . | . . . . Machines Sabotaged . | . . . . Overloaded Fab Kills . | . . . . Hacking | -11 -10 -10 -10 --------- Run | Yrd Mat Min Sub Machines Accessed 6 | . 6 . . Terminals 5 | . 5 . . Fabricators . | . . . . Repair Stations . | . . . . Recycling Units 1 | . 1 . . Scanalyzers . | . . . . Garrison Access . | . . . . Total Hacks 16 | . 16 . . Successful 10 | . 10 . . Failed 6 | . 6 . . Catastrophic . | . . . . Database Lockouts . | . . . . Manual 11 | . 11 . . Terminals 15 | . 15 . . Fabricators . | . . . . Repair Stations . | . . . . Recycling Units 1 | . 1 . . Scanalyzers . | . . . . Garrison Access . | . . . . Terminal Hacks 5 | . 5 . . Robot Analysis 1 | . 1 . . Prototype ID Bank 2 | . 2 . . Locate Traps 2 | . 2 . . Fabricator Hacks . | . . . . Repair Station Hacks . | . . . . Recycling Unit Hacks 1 | . 1 . . Retrieve Components 1 | . 1 . . Scanalyzer . | . . . . Garrison Access Hacks . | . . . . Unauthorized Hacks 4 | . 4 . . Terminals 4 | . 4 . . Track 1 | . 1 . . Botnet 3 | . 3 . . Fabricators . | . . . . Repair Stations . | . . . . Recycling Units . | . . . . Scanalyzers . | . . . . Garrison Access . | . . . . Data Cores Recovered . | . . . . Used . | . . . . Hacking Detections 5 | . 5 . . Full Trace Events . | . . . . Feedback Events . | . . . . Feedback Blocked . | . . . . Robot Schematics Acquired . | . . . . Robots Built . | . . . . Authchips . | . . . . Time . | . . . . Total Robot Build Rating . | . . . . Part Schematics Acquired . | . . . . Parts Built . | . . . . Authchips . | . . . . Time . | . . . . Total Part Build Rating . | . . . . Parts Repaired . | . . . . Time . | . . . . Parts Recycled . | . . . . Recycled Matter . | . . . . Retrieved Matter . | . . . . Retrieved Components 9 | . 9 . . Parts Scanalyzed . | . . . . Part Schematics Acquired . | . . . . Parts Damaged . | . . . . Bothacking | -11 -10 -10 -10 ------------ Run | Yrd Mat Min Sub Used RIF Installer . | . . . . Robots Hacked . | . . . . Non-combat . | . . . . Combat . | . . . . Robot Hacks Applied . | . . . . Relay Couplers Released . | . . . . Fabnet Peak Effective % . | . . . . Robots Rewired . | . . . . Allies Hacked . | . . . . Hacks Repelled . | . . . . Allies | -11 -10 -10 -10 -------- Run | Yrd Mat Min Sub Total Allies 5 | . . 5 . Largest Group 5 | . . 5 2 Highest-Rated Group 91 | . . 91 24 Highest-Rated Ally 31 | . . 31 16 Total Orders . | . . . . Ally Attacks 31 | . . 10 21 Total Damage 354 | . . 110 244 Kills 5 | . . 3 2 Allies Corrupted . | . . . . Allies Melted . | . . . . Intel | -11 -10 -10 -10 ------- Run | Yrd Mat Min Sub Robot Analysis Total 1 | . 1 . . Derelict Logs Recovered 1 | . . 1 . Drone Launches . | . . . . Drone Recoveries . | . . . . Exploration | -11 -10 -10 -10 ------------- Run | Yrd Mat Min Sub Turns Passed 3334 | 145 1341 1355 493 Spaces Moved 1652 | 82 610 740 220 Core 5 | 5 . . . Treads 1466 | 27 561 740 138 Legs . | . . . . Wheels 181 | 50 49 . 82 Hover . | . . . . Flight . | . . . . Fastest Speed 50 | 50 95 160 120 Average Speed 167 | 113 190 160 147 Slowest Speed 240 | 160 240 160 240 Overloaded Moves . | . . . . Propulsion Burnouts . | . . . . Robots Hopped . | . . . . Cave-ins Triggered . | . . . . Exploration Rate (%) 55 | 5 95 95 26 Regions Visited 3 Branch Regions 2 Pre-discovered Areas . | . . . . Known Exits Taken . | . . . . Unknown Exits Taken 3 | 1 1 1 . Scrap Searched 2 | . . 1 1 Spaces Dug 5 | . . 5 . Terrain Destroyed 116 | . . 95 21 Melee . | . . . . Projectile . | . . . . AOE 116 | . . 95 21 Terrain Rammed . | . . . . Walls Destroyed . | . . . . Machines Disabled . | . . . . Actions | -11 -10 -10 -10 --------- Run | Yrd Mat Min Sub Total 1964 | 106 688 842 328 Wait 125 | . 14 63 48 Move 1649 | 81 609 739 220 Hop . | . . . . Pick Up 23 | 5 9 3 6 Fast Attach 11 | 7 1 . 3 Attach 6 | . . 3 3 Detach . | . . . . Swap 20 | . 3 7 10 Drop 7 | 1 1 . 5 Fire 123 | 12 51 27 33 Melee . | . . . . Ram . | . . . . Kick . | . . . . Crush . | . . . . Escape Stasis . | . . . . Rewire . | . . . . Trap . | . . . . Miscellaneous . | . . . . Route ------- -11/Scrapyard -10/Materials (discovered 4 exits: [*Mat x3] / [*Min]) -10/Mines (discovered 3 exits: [*Mat x2] / [*Sub]) -10/Subcaves History --------- Turn | Location | Event 8 | -11/Scrapyard | Discovered new exit (range 15) 146 | -11/Scrapyard | Entered Materials 303 | -10/Materials | Build established: Mutant 468 | -10/Materials | Discovered new exit (range 3) 716 | -10/Materials | Discovered new exit (range 5) 1125 | -10/Materials | Discovered new exit (range 8) 1262 | -10/Materials | Discovered new exit (range 8) 1487 | -10/Materials | Entered Mines 1602 | -10/Mines | Learned Materials interactive machine intel 1697 | -10/Mines | Core integrity fell below 50% 1829 | -10/Mines | Assisted by bots powering up and referring to "LRC-V3" 2155 | -10/Mines | Assembled infested the area 2256 | -10/Mines | Discovered new exit (range 14) 2436 | -10/Mines | Discovered new exit (range 3) 2554 | -10/Mines | Discovered new exit (range 6) 2842 | -10/Mines | Entered Subcaves 2842 | -10/Subcaves | Accompanied by 2 allies 3007 | -10/Subcaves | Ambushed by angry Subdweller bent on revenge 3187 | -10/Subcaves | Core integrity fell below 20% 3233 | -10/Subcaves | A swath of the cavern ceiling suddenly collapsed 3235 | -10/Subcaves | Lost 3 parts (1p1u1w) 3248 | -10/Subcaves | Shifting Twisted Machinery released Battle Cannon 3251 | -10/Subcaves | Shifting Twisted Machinery released Barrage Gun 3322 | -10/Subcaves | Disturbed a concealed Subdweller 3335 | -10/Subcaves | Destroyed by XZ-WO0(R) with Subdweller Machine Gun Last Messages --------------- 03213_ Acquired Flamer. 03217_ Acquired Sub. Machine Gun. A swath of the cavern ceiling suddenly collapses. Battle Cannon falls loose from the Twisted Machinery. Barrage Gun falls loose from the Twisted Machinery. 03264_ Acquired Battle Cannon. 03315_ Searching scrap... 03315_ Found Battle Cannon. 03315_ Found 31 Matter. 03316_ Acquired 31 matter. 03318_ DS-I3C(R) destroyed. 03320_ XZ-WO0(R) affixes Scrap Shield Fragment to Scrap Shield. 03322_ 5S-4OU(R) angrily emerges from the Twisted Machinery. 03330_ 5S-4OU(R) suffers critical hit (Destroy). 03333_ Sub. Machine Gun destroyed. Map ----- +----------------------------------------------------+ | ??????????????????????## #?????????? | | ???????????????????????# ##???????? ? | | ?????????????????????### #???##?# ? | | ?????????????????????# #?? ? | | ?????????????????????## ##? #??? | | ?????????????????????# # #???? | | ?????????????????????## ####? | | ??????????????????????# ## "" #? | | ??????????????????????# ##"""" #? | | ??????????????????##### """" # | | ??????????????????#" """ | | ??????????????????## "" | | ???????????????????# ["" | | ???????????????????# "##" #### | | ???????????????????##"?## ####????? | | ????????????????????##??## ##???? | | ????????????????????????## #???? | | ???????????????????????## #???? | | ????????????????####???# #### ##???? | | ???????????????##""##### ##???##????? | | ???????????????# """## #?????????? | | ???????????????# ##""# ##?????????? | | ???????????????# ## #?????????? | | ??????????????## # #?????????? | | ?????????#??### [ ##?????????? | | ?????????# #@#" %& # #?????????? | | ??????????# R]R #?????????? | | ?????????# &<##< ##?????????? | | ?????????##$## # ##??????????? | | ??????????##?#### ###???????????? | | ????????????????## #????????????? | | ?????????????????# #????????????? | | ?????????????????# ???????????? | | ?????????????????##### ?????????? | | ?????????????????????? ?????????? | | ?????????????????????? #?????????? | | ??????????????????????######?????????? | | ?????????????????????????????????????? | | ?????????????????????????????????????? | | ?????????????????????????????????????? | | ?????????????????????????????????????? | | ?????????????????????????????????????? | | ?????????????????????????????????????? | | ?????????????????????????????????????? | | ?????????????????????????????????????? | | ?????????????????????????????????????? | | ?????????????????????????????????????? | | ?????????????????????????????????????? | | ?????????????????????????????????????? | | ?????????????????????????????????????? | +----------------------------------------------------+ Best States ------------- Heat Dissipation 35 Energy Generation 14 Energy Capacity 250 Matter Stores 300 Matter Capacity 300 Sight Range 16 Terrain Scan Density 10 Armor Coverage 150 Evasion (%) 41 Recoil Reduction 2 Item Schematics ----------------- None Robot Schematics ------------------ None Fabricated ------------ Nothing Alien Tech Used ----------------- None Achievements -------------- None Challenges ------------ None Game ------ Seed ThermicMobileImmobilizer Manual? 0 Play Time 00:22:13 Cumulative 278.4 hours Start 2024.08.02 @ 15:50:21 End 2024.08.02 @ 16:10:12 Sessions 1 Manual Loads 0 Difficulty Rogue Special Mode None Game No. 103 Rogue 101 Adventurer 0 Explorer 2 Win Type - Total 7 Types 5/0/1/1/0/0/0/0/0 Lore% 81 Gallery% 83 Achievement% 71 Wizard Run 0 Options --------- Layout 2 ASCII 0 Keyboard 0 Movement Numpad Keybinds 0 Fullscreen 1 Font 24/Smallcaps Map View 50x44 Zoom Use 0% Tactical HUD 1 Map Filters NONE Filters NONE Steam 0 RUN: c5a8d26f-9c19-47fc-a265-b04c6e763faf